fUSD/lending_fUSD_20240201
["ID","MTS","AMOUNT","RATE_DAILY","PERIOD"]
[313129265,1706785180624,1654.72,0.00021895,2]
[313129266,1706785419306,840.0,0.00021884,2]
[313129267,1706785507076,241.75,0.0001997,2]
[313129268,1706785507453,241.75,0.00022234,2]
[313129269,1706785523650,221.3,0.00022061,2]
[313129270,1706785523859,221.3,0.00022121,2]
[313129271,1706785524310,221.3,0.00022182,2]
[313129272,1706785524509,221.3,0.00022242,2]
[313129273,1706785524871,221.3,0.00022303,2]
[313129274,1706785525090,221.3,0.00022363,2]
[313129275,1706785525752,221.3,0.00022424,2]
[313129276,1706785525806,221.3,0.00022484,2]
[313129277,1706785525844,221.3,0.00022545,2]
[313129278,1706785649549,1406.71,0.00021889,2]
[313129279,1706785670246,544.93064915,0.00022545,7]
[313129280,1706785698839,-169.5,0.00022577,2]
[313129281,1706785698858,-166.06,0.00022577,2]
[313129282,1706785747060,-221.3,0.00022605,2]
[313129283,1706785747080,-221.3,0.00022666,2]
[313129284,1706785747101,-221.3,0.00022726,2]
[313129285,1706785747122,-7995.21739361,0.00022745,2]
[313129286,1706785747141,-221.3,0.00022787,2]
[313129287,1706785747165,-157.34155024,0.00022797,2]
[313129288,1706785747187,-150.0,0.00022798,2]
[313129289,1706785747208,-812.24105615,0.00022799,2]
[313129290,1706785749194,-187.74894385,0.00022799,2]
[313129291,1706785749215,-324.6447,0.000228,2]
[313129292,1706785749234,-9487.60635615,0.000228,2]
[313129293,1706785750159,-256.80214385,0.000228,2]
[313129294,1706785750179,-175.0,0.000228,2]
[313129295,1706785750199,-487.0463,0.000228,2]
[313129296,1706785750220,-156.90435776,0.000228,2]
[313129297,1706785750244,-978.8151,0.000228,2]
[313129298,1706785750265,-657.65515067,0.000228,2]
[313129299,1706785750289,-157.34155024,0.00022811,2]
[313129300,1706785750310,-157.34155024,0.00022824,2]
[313129301,1706785750330,-157.34155024,0.00022838,2]
[313129302,1706785750350,-156.90435776,0.00022843,2]
[313129303,1706785750371,-221.3,0.00022847,2]
[313129304,1706785750392,-157.34155024,0.00022851,2]
[313129305,1706785750412,-157.34155024,0.00022865,2]
[313129306,1706785750432,-2268.97,0.00022865,2]
[313129307,1706785750696,-157.34155024,0.00022879,2]
[313129308,1706785750719,-156.90435776,0.00022886,2]
[313129309,1706785750739,-157.34155024,0.00022892,2]
[313129310,1706785750759,-481.43449964,0.00022898,2]
[313129311,1706785750778,-335.34184588,0.00022898,2]
[313129312,1706785750799,-2565.531035,0.000229,2]
[313129313,1706785756717,-1000.0,0.000229,2]
[313129317,1706785757292,-1000.0,0.000229,2]
[313129318,1706785757791,-1000.0,0.000229,2]
[313129319,1706785758336,-1000.0,0.000229,2]
[313129320,1706785758920,-1000.0,0.000229,2]
[313129321,1706785759508,-1000.0,0.000229,2]
[313129322,1706785772609,-7995.21739361,0.0002267,2]
[313129323,1706785772630,-2004.78260639,0.000229,2]
[313129342,1706785831878,-3320.74165696,0.0002267,2]
[313129343,1706785831931,-844.76660511,0.0002267,2]
[313129344,1706785831942,-385.56531795,0.00022899,2]
[313129346,1706785831951,-28249.80990956,0.000229,2]
[313129348,1706785831962,-359.03835404,0.000229,2]
[313129349,1706785831988,-438.73888158,0.000229,2]
[313129350,1706785832000,-4140.5712265,0.000229,2]
[313129351,1706785832045,-1448.7530309,0.000229,2]
[313129352,1706785832058,-48078.25442778,0.000229,2]
[313129353,1706785832069,-459.2369133,0.000229,2]
[313129354,1706785832080,-312.06068321,0.000229,2]
[313129355,1706785832092,-381.79850293,0.000229,2]
[313129356,1706785832103,-794.50763353,0.000229,2]
[313129357,1706785832115,-7354.72394105,0.000229,2]
[313129368,1706785837868,-2980.50177906,0.000229,2]
[313129369,1706785837879,-446.04655466,0.000229,2]
[313129370,1706785837925,-43103.63674456,0.000229,2]
[313129371,1706785837937,-50332.40873212,0.000229,2]
[313129372,1706785837946,-208.6733,0.000229,2]
[313129373,1706785837956,-139017.60945605,0.000229,2]
[313129374,1706785838035,-846.030803,0.000229,2]
[313129375,1706785838090,-263.85947574,0.000229,2]
[313129376,1706785838202,-1069.53500369,0.000229,2]
[313129377,1706785838213,-958.60361974,0.000229,2]
[313129378,1706785838224,-5949.08713678,0.000229,2]
[313129379,1706785838236,-1769.61381994,0.000229,2]
[313129415,1706785840613,-753.6799968,0.000229,2]
[313129416,1706785841203,-35953.48121559,0.000229,2]
[313129417,1706785841212,-162.83781801,0.000229,2]
[313129418,1706785841221,-153.77777038,0.000229,2]
[313129419,1706785841231,-216.13747036,0.000229,2]
[313129420,1706785841240,-800.0,0.00022904,2]
[313129421,1706785841249,-221.3,0.00022908,2]
[313129422,1706785841258,-156.90435776,0.00022929,2]
[313129423,1706785841267,-163.63843916,0.00022929,2]
[313129424,1706785841276,-193.41510432,0.00022929,2]
[313129425,1706785841285,-352.7093548,0.00022929,2]
[313129426,1706785841294,-1089.82188354,0.00022929,2]
[313129427,1706785841304,-332.60607097,0.00022929,2]
[313129428,1706785841314,-400.0,0.00022959,2]
[313129429,1706785841323,-221.3,0.00022968,2]
[313129430,1706785841333,-982.3737,0.00022999,2]
[313129431,1706785841342,-66486.6004542,0.00023,2]
[313129432,1706785841359,-640.041,0.00023,2]
[313129433,1706785841370,-3323.20790079,0.00023,2]
[313129451,1706785842819,4808.48655253,0.0003125,120]
[313129460,1706785843032,-4488.85437115,0.00023,2]
[313129461,1706785843140,-3846.73703416,0.00023,2]
[313129462,1706785843155,-8105.9759816,0.00023,2]
[313129464,1706785846035,-149991.31997906,0.00023,2]
[313129465,1706785846046,-13125.70007684,0.00023,2]
[313129466,1706785846088,-520.27750325,0.00023,2]
[313129467,1706785846254,-1461.814397,0.00023,2]
[313129468,1706785846265,-1467.87505136,0.00023,2]
[313129469,1706785846281,-941.64187706,0.00023,2]
[313129470,1706785846313,-652.38094598,0.00023,2]
[313129471,1706785855231,456.07506283,0.00020699,5]
[313129473,1706785924018,208.0,0.00022522,2]
[313129474,1706785924294,250.36493717,0.00020699,7]
[313129475,1706785924314,294.56571198,0.00020699,7]
[313129476,1706785944912,217.57,0.00021078,2]
[313129477,1706785964305,294.56571198,0.00020699,7]
[313129478,1706786076204,1406.71,0.000224,2]
[313129479,1706786107732,186.43,0.00022326,10]
[313129480,1706786348726,672.0,0.00022195,2]
[313129481,1706786354124,11448.0,0.00022542,2]
[313129482,1706786461855,206.69,0.00020302,2]
[313129483,1706786494149,1172.25,0.00022173,2]
[313129484,1706786779534,462.4,0.0002208,2]
[313129485,1706786809450,429.84,0.00021916,2]
[313129486,1706786850627,153.51,0.00022027,2]
[313129487,1706786850839,153.51,0.00022109,2]
[313129488,1706786851070,153.51,0.00022191,2]
[313129489,1706786851312,153.51,0.00022273,2]
[313129490,1706786851701,153.51,0.00022355,2]
[313129491,1706786851913,153.51,0.00022437,2]
[313129492,1706786852108,153.51,0.00022519,2]
[313129493,1706786894354,196.35,0.00019904,2]
[313129494,1706786894688,196.35,0.00022168,2]
[313129514,1706787032075,-385.56531795,0.00022562,2]
[313129515,1706787032084,-336.74741291,0.00022563,2]
[313129516,1706787032093,-157.34155024,0.00022568,2]
[313129517,1706787032102,-153.51,0.000226,2]
[313129519,1706787032111,-157.34155024,0.00022605,2]
[313129521,1706787032120,-157.34155024,0.00022641,2]
[313129522,1706787032129,-3026.29326941,0.00022667,2]
[313129524,1706787032141,-1038.75,0.00022667,2]
[313129525,1706787032153,-384.3878097,0.00022667,2]
[313129526,1706787032185,-3545.7863145,0.00022667,2]
[313129527,1706787032194,-150.0,0.00022667,2]
[313129528,1706787032202,-195.9217,0.00022668,2]
[313129529,1706787032211,-487.0463,0.00022668,2]
[313129530,1706787032221,-157.34155024,0.00022678,2]
[313129531,1706787032231,-153.51,0.00022682,2]
[313129532,1706787032241,-2268.97,0.00022682,2]
[313129533,1706787032250,-324.6447,0.000227,2]
[313129534,1706787032259,-9744.4085,0.000227,2]
[313129535,1706787032268,-999.99,0.000227,2]
[313129536,1706787032277,-978.8151,0.000227,2]
[313129537,1706787032296,-157.34155024,0.00022714,2]
[313129538,1706787032307,-914.07895732,0.00022716,2]
[313129539,1706787032316,-157.34155024,0.00022751,2]
[313129540,1706787032326,-153.51,0.00022764,2]
[313129541,1706787032336,-4939.07015278,0.00022767,2]
[313129542,1706787032346,-212.32079352,0.00022768,2]
[313129543,1706787032355,-8400.42876777,0.00022768,2]
[313129544,1706787032365,-3630.94620597,0.00022768,2]
[313129545,1706787032382,-535.37065222,0.00022768,2]
[313129546,1706787032393,-1326.90572338,0.00022768,2]
[313129547,1706787032409,-1711.99249184,0.00022768,2]
[313129562,1706787038156,-323.17875603,0.00022768,2]
[313129563,1706787038168,-635.27416359,0.00022768,2]
[313129564,1706787038180,-1545.65765253,0.00022768,2]
[313129565,1706787038216,-979.31412629,0.00022768,2]
[313129566,1706787038228,-6624.77835897,0.00022768,2]
[313129567,1706787038239,-964.25460312,0.00022768,2]
[313129568,1706787038270,-1920.23956661,0.00022768,2]
[313129569,1706787038369,-21361.19935443,0.00022768,2]
[313129570,1706787038383,-25556.10247485,0.00022768,2]
[313129571,1706787038394,-2103.3787534,0.00022768,2]
[313129572,1706787038405,-638.89389986,0.00022768,2]
[313129576,1706787038619,-2502.59387264,0.00022768,2]
[313129578,1706787038631,-688.11033528,0.00022768,2]
[313129579,1706787038652,-988.1124804,0.00022768,2]
[313129580,1706787038663,-1704.77468899,0.00022768,2]
[313129602,1706787040578,-3176.16317871,0.00022768,2]
[313129605,1706787040587,-157.34155024,0.00022787,2]
[313129607,1706787040597,-335.34184588,0.00022798,2]
[313129609,1706787040606,-13244.45342517,0.000228,2]
[313129610,1706787040617,-37876.98660379,0.000228,2]
[313129611,1706787041317,-844.965,0.000228,2]
[313129612,1706787041426,-22828.5010524,0.000228,2]
[313129618,1706787043719,-8894.03345698,0.000228,2]
[313129619,1706787043731,-1037.57518931,0.000228,2]
[313129620,1706787043744,-264.1135013,0.000228,2]
[313129621,1706787043829,-102840.44477759,0.000228,2]
[313129622,1706787043841,-689.0694402,0.000228,2]
[313129623,1706787043951,-2500.0,0.000228,2]
[313129624,1706787043962,-2459.53667299,0.000228,2]
[313129634,1706787046193,-870.02,0.00022723,2]
[313129635,1706787046303,-106.85,0.00022723,2]
[313129636,1706787046313,-40766.09065676,0.000228,2]
[313129637,1706787201331,630.08,0.00022463,2]
[313129638,1706787346714,176.71,0.00020366,2]
[313129639,1706787388646,153.85,0.00022387,2]
[313129640,1706787475035,150.0,0.00022519,2]
[313129641,1706787575627,814.05,0.00022201,2]
[313129642,1706787625617,495.93,0.00022247,2]
[313129643,1706787682908,343.87,0.00022473,2]
[313129644,1706787694013,208.0,0.00022207,2]
[313129645,1706787747185,157.34155024,0.00022521,2]
[313129646,1706787791620,167.87,0.00020667,2]
[313129647,1706788006099,678.37,0.00022374,2]
[313129648,1706788024697,-2000.0,0.00022569,2]
[313129649,1706788026287,-2000.0,0.00022569,2]
[313129650,1706788026716,-2000.0,0.00022569,2]
[313129651,1706788027073,-1995.21739361,0.00022569,2]
[313129652,1706788027100,-4.78260639,0.0002257,2]
[313129653,1706788028049,-1259.31143444,0.0002257,2]
[313129654,1706788028072,-153.85,0.00022612,2]
[313129655,1706788028105,-157.34155024,0.00022658,2]
[313129656,1706788028129,-157.34155024,0.00022796,2]
[313129657,1706788028151,-150.0,0.00022798,2]
[313129658,1706788028178,-122.15546508,0.00022798,2]
[313129659,1706788030031,-177.84453492,0.00022798,2]
[313129660,1706788030057,-1822.15546508,0.00022799,2]
[313129661,1706788030580,-2000.0,0.00022799,2]
[313129662,1706788031003,-2000.0,0.00022799,2]
[313129663,1706788031487,-2000.0,0.00022799,2]
[313129664,1706788031950,-2000.0,0.00022799,2]
[313129665,1706788033028,-2000.0,0.00022799,2]
[313129666,1706788033670,-2000.0,0.00022799,2]
[313129667,1706788034207,-2000.0,0.00022799,2]
[313129668,1706788034811,-2000.0,0.00022799,2]
[313129669,1706788051519,603.25,0.00022145,2]
[313129670,1706788074829,482.12405516,0.00022114,2]
[313129671,1706788079415,1155.28171818,0.00020518,2]
[313129672,1706788204688,323.64523958,0.00023,30]
[313129677,1706788235086,-4165.50826207,0.00022564,2]
[313129678,1706788235096,-1264.09404083,0.00022565,2]
[313129679,1706788235106,-1420.52819895,0.00022571,2]
[313129680,1706788235115,-191.83293913,0.00022698,2]
[313129681,1706788235125,-8204.0065,0.000227,2]
[313129682,1706788235135,-1234.96132139,0.00022799,2]
[313129683,1706788235144,-265.82049859,0.00022799,2]
[313129684,1706788235154,-284.18685088,0.00022799,2]
[313129685,1706788235164,-150.0,0.00022799,2]
[313129686,1706788235173,-150.0,0.00022799,2]
[313129687,1706788235183,-150.0,0.00022799,2]
[313129688,1706788235193,-155.96864151,0.00022799,2]
[313129689,1706788235203,-155.0,0.00022799,2]
[313129690,1706788235213,-1000.0,0.000228,2]
[313129691,1706788235223,-3219.92621962,0.000228,2]
[313129692,1706788235235,-5988.21787011,0.000228,2]
[313129693,1706788235256,-1754.78592982,0.000228,2]
[313129694,1706788235360,-1101.18125251,0.000228,2]
[313129697,1706788238296,-27297.80802794,0.000228,2]
[313129698,1706788238306,-32613.70171004,0.000228,2]
[313129699,1706788238351,-8180.19957404,0.000228,2]
[313129700,1706788238417,-813.04,0.000228,2]
[313129701,1706788238591,-1017.66627,0.000228,2]
[313129702,1706788238602,-4024.12769818,0.000228,2]
[313129703,1706788238614,-857.91924515,0.000228,2]
[313129736,1706788243345,-561.1475396,0.000228,2]
[313129737,1706788243357,-7651.00176756,0.000228,2]
[313129738,1706788243402,-4103.3305331,0.000228,2]
[313129739,1706788243413,-40177.86566233,0.000228,2]
[313129740,1706788243423,-250.8272,0.000228,2]
[313129741,1706788243432,-11370.98236164,0.000228,2]
[313129742,1706788243512,-2609.2282807,0.000228,2]
[313129743,1706788243570,-613.99623277,0.000228,2]
[313129751,1706788244561,-699.58504502,0.000228,2]
[313129752,1706788244574,-644.77640894,0.000228,2]
[313129753,1706788244618,-633.24,0.000228,2]
[313129754,1706788244677,-307.46014093,0.000228,2]
[313129755,1706788244735,-467.6167141,0.000228,2]
[313129756,1706788244792,-11664.0398159,0.000228,2]
[313129757,1706788244803,-500.0,0.000228,2]
[313129758,1706788244812,-156.90435776,0.000228,2]
[313129759,1706788244821,-428.77823293,0.000228,2]
[313129760,1706788244831,-200.0,0.00022816,2]
[313129761,1706788244841,-800.0,0.00022816,2]
[313129763,1706788244851,-205.914977,0.00022816,2]
[313129764,1706788244860,-156.90435776,0.00022851,2]
[313129766,1706788244869,-2741.93,0.00022851,2]
[313129768,1706788244878,-325.15,0.00022851,2]
[313129770,1706788244887,-245000.0,0.000229,2]
[313129772,1706788244896,-154.66893655,0.000229,2]
[313129774,1706788244905,-156.90435776,0.00022902,2]
[313129777,1706788244914,-400.42662903,0.00022902,2]
[313129778,1706788244924,-198.93083368,0.00022902,2]
[313129779,1706788244933,-800.1036466,0.00022902,2]
[313129780,1706788244942,-290.48053193,0.00022902,2]
[313129781,1706788244951,-153.85,0.00022907,2]
[313129782,1706788244961,-167.87,0.00022931,2]
[313129783,1706788244971,-157.34155024,0.00022933,2]
[313129784,1706788244980,-237.24603119,0.00022996,2]
[313129785,1706788244989,-244.91051467,0.00022996,2]
[313129786,1706788244998,-2625.48929436,0.00022996,2]
[313129787,1706788245007,-241.51908631,0.00022996,2]
[313129788,1706788245017,-200.0,0.00022996,2]
[313129789,1706788245026,-275.84748554,0.00022996,2]
[313129790,1706788245035,-156.17979281,0.00022996,2]
[313129791,1706788245045,-301.89135144,0.00022996,2]
[313129792,1706788245054,-1066.66499551,0.00022996,2]
[313129793,1706788245063,-226.11786442,0.00022998,2]
[313129794,1706788245072,-155.0,0.00022998,2]
[313129795,1706788245081,-4634.84004218,0.00022998,2]
[313129796,1706788245090,-500.0,0.00022998,2]
[313129797,1706788245100,-30304.9158961,0.00022998,2]
[313129798,1706788245109,-3580.97023092,0.00022999,2]
[313129799,1706788245117,-362.29642557,0.00022999,2]
[313129800,1706788245128,-628.30579649,0.00022999,2]
[313129801,1706788245138,-140839.06507673,0.00023,2]
[313129821,1706788246461,-21120.0,0.00023,2]
[313129822,1706788246522,-10859.0,0.00023,2]
[313129823,1706788256189,155.0,0.0002244,7]
[313129824,1706788257818,3197.13386433,0.00022078,2]
[313129825,1706788325895,4491.3600522,0.000199,3]
[313129826,1706788376506,-151.08,0.00022647,2]
[313129827,1706788376526,-1264.09404083,0.00022666,2]
[313129828,1706788376546,-4165.50826207,0.00022667,2]
[313129829,1706788376566,-23917.3176971,0.000227,2]
[313129830,1706788395709,4165.50826207,0.00022472,2]
[313129831,1706788413712,4165.50826207,0.00022471,2]
[313129832,1706788429714,4165.50826207,0.00022471,2]
[313129833,1706788440734,-1264.09404083,0.00022699,2]
[313129834,1706788440754,-13700.90595917,0.000227,2]
[313129835,1706788454498,155.0,0.00022471,2]
[313129836,1706788459166,414.32805963,0.00022471,2]
[313129837,1706788460802,247.32726579,0.00022471,2]
[313129838,1706788468279,281.28534164,0.00022471,2]
[313129839,1706788480157,356.64347884,0.00022471,2]
[313129840,1706788706953,163.63,0.00019926,2]
[313129841,1706788707269,163.63,0.0002219,2]
[313129842,1706788829921,153.85,0.00021988,2]
[313129843,1706788853200,3723.54634248,0.00022471,2]
[313129844,1706788992474,565.3,0.00021795,2]
[313129845,1706788996880,482.6,0.00021811,2]
[313129846,1706789112113,155.01,0.00019877,2]
[313129847,1706789113124,155.01,0.00022267,2]
[313129848,1706789153334,385.56531795,0.0002255,2]
[313129849,1706789261180,490.21498395,0.0002255,2]
[313129850,1706789266797,156.86,0.00021945,2]
[313129851,1706789266931,751.51349031,0.00022016,2]
[313129852,1706789267014,156.86,0.00022326,2]
[313129853,1706789268282,400.82572959,0.00022325,2]
[313129854,1706789269747,304.74826577,0.00021,2]
[313129855,1706789273671,200.0,0.00021784,2]
[313129856,1706789275279,155.0,0.00020295,2]
[313129857,1706789289272,156.61149724,0.00020295,2]
[313129858,1706789289361,301.856441,0.00022445,2]
[313129859,1706789312286,1600.0,0.00021784,2]
[313129860,1706789323383,150.0,0.00022,2]
[313129861,1706789363420,150.0,0.00022549,2]
[313129868,1706789431478,-283.67279462,0.00022558,2]
[313129869,1706789431487,-4165.50826207,0.00022559,2]
[313129870,1706789431497,-2449.25832615,0.0002256,2]
[313129871,1706789431506,-151.21645227,0.00022597,2]
[313129872,1706789431515,-163.8250647,0.00022599,2]
[313129873,1706789431527,-136.1749353,0.00022599,2]
[313129874,1706789431536,-150.0,0.00022599,2]
[313129875,1706789431545,-150.0,0.00022599,2]
[313129876,1706789431554,-623.525,0.000226,2]
[313129877,1706789431563,-232.0909,0.000226,2]
[313129878,1706789431573,-1109.79868398,0.000226,2]
[313129879,1706789431582,-340.71199572,0.000226,2]
[313129880,1706789431793,-146.27330428,0.000226,2]
[313129881,1706789431803,-151.21645219,0.0002262,2]
[313129882,1706789431812,-151.21645219,0.00022644,2]
[313129883,1706789431822,-1310.56756898,0.00022644,2]
[313129884,1706789431833,-319.91350895,0.00022644,2]
[313129885,1706789431848,-662.3,0.00022644,2]
[313129886,1706789431859,-705.4799712,0.00022644,2]
[313129887,1706789431870,-265.25084561,0.00022644,2]
[313129888,1706789431881,-568.82257769,0.00022644,2]
[313129889,1706789431893,-11819.21105031,0.00022644,2]
[313129890,1706789431912,-2961.70000088,0.00022644,2]
[313129891,1706789433009,-3670.32447638,0.00022644,2]
[313129892,1706789433019,-1000.0,0.00022666,2]
[313129893,1706789433029,-151.21645219,0.00022667,2]
[313129894,1706789433039,-7170.27,0.00022667,2]
[313129895,1706789433050,-151.21645219,0.0002269,2]
[313129896,1706789433061,-504.93527156,0.00022697,2]
[313129897,1706789433071,-528.2831667,0.00022697,2]
[313129898,1706789433082,-632.82052647,0.00022697,2]
[313129899,1706789433090,-568.79891085,0.00022697,2]
[313129900,1706789433102,-923.55201597,0.00022697,2]
[313129901,1706789433111,-501.6773538,0.00022697,2]
[313129902,1706789433121,-307.67668899,0.00022698,2]
[313129904,1706789433130,-881.32153267,0.00022698,2]
[313129906,1706789433140,-943.69459447,0.00022698,2]
[313129908,1706789433149,-161.10433966,0.00022698,2]
[313129910,1706789433158,-505.32313827,0.00022698,2]
[313129912,1706789433170,-375.75496917,0.00022698,2]
[313129914,1706789433192,-296.28945203,0.00022698,2]
[313129916,1706789433214,-583.66541534,0.00022698,2]
[313129918,1706789433237,-1816.85072469,0.00022698,2]
[313129920,1706789433260,-764.23675436,0.00022698,2]
[313129921,1706789433473,-2145.00433341,0.00022698,2]
[313129922,1706789433483,-1087.31367999,0.00022698,2]
[313129923,1706789433493,-24405.65890911,0.00022699,2]
[313129924,1706789433503,-62460.31444245,0.00022699,2]
[313129925,1706789433512,-292.81919456,0.00022699,2]
[313129926,1706789433521,-4311.0556863,0.00022699,2]
[313129927,1706789433531,-21226.99273722,0.000227,2]
[313129928,1706789433543,-2617.74080649,0.000227,2]
[313129929,1706789433555,-626.78300951,0.000227,2]
[313129930,1706789433578,-2170.48825319,0.000227,2]
[313129931,1706789433590,-645.33083962,0.000227,2]
[313129932,1706789433601,-4206.25,0.000227,2]
[313129938,1706789437494,-484.17908567,0.000227,2]
[313129939,1706789437505,-636.82173499,0.000227,2]
[313129940,1706789437517,-541.0279352,0.000227,2]
[313129941,1706789437528,-257.84999975,0.000227,2]
[313129942,1706789437539,-568.065,0.000227,2]
[313129943,1706789437550,-1018.91138684,0.000227,2]
[313129944,1706789437562,-19257.55958767,0.000227,2]
[313129945,1706789437573,-6977.3887947,0.000227,2]
[313129946,1706789437585,-781.88578096,0.000227,2]
[313129947,1706789437595,-769.22313,0.000227,2]
[313129948,1706789437607,-8612.43843895,0.000227,2]
[313129949,1706789437622,-541.98537446,0.000227,2]
[313129950,1706789437634,-1788.25695,0.000227,2]
[313129951,1706789437645,-729.82228752,0.000227,2]
[313129952,1706789437658,-2498.94,0.000227,2]
[313129953,1706789437680,-974.32618933,0.000227,2]
[313129954,1706789437691,-1413.26324065,0.000227,2]
[313129955,1706789437704,-28704.86645292,0.000227,2]
[313129956,1706789437716,-17833.28364705,0.000227,2]
[313129957,1706789437727,-23745.48178935,0.000227,2]
[313129958,1706789437759,-12083.69711563,0.000227,2]
[313129959,1706789437770,-1679.83585489,0.000227,2]
[313129960,1706789437781,-2828.8378332,0.000227,2]
[313129961,1706789437794,-725.81563912,0.000227,2]
[313129962,1706789437805,-741.27723955,0.000227,2]
[313129963,1706789437817,-420.8888349,0.000227,2]
[313129964,1706789437833,-306.21271097,0.000227,2]
[313129965,1706789437846,-38966.04866343,0.000227,2]
[313129966,1706789437856,-39361.9193,0.000227,2]
[313129967,1706789437865,-100000.0,0.000227,2]
[313129968,1706789437875,-156.86,0.00022707,2]
[313129969,1706789437885,-151.21645219,0.00022714,2]
[313129970,1706789437894,-151.21645219,0.00022737,2]
[313129971,1706789437904,-275.09,0.00022738,2]
[313129972,1706789437913,-151.21645219,0.0002276,2]
[313129973,1706789437923,-151.21645219,0.00022783,2]
[313129974,1706789437932,-500.0,0.000228,2]
[313129975,1706789437942,-151.21645219,0.00022807,2]
[313129976,1706789437951,-500.0,0.00022815,2]
[313129977,1706789437960,-200.0,0.00022815,2]
[313129978,1706789437970,-200.0,0.00022816,2]
[313129979,1706789437979,-500.0,0.00022816,2]
[313129980,1706789437990,-500.0,0.00022816,2]
[313129981,1706789438000,-200.0,0.00022816,2]
[313129982,1706789438009,-200.0,0.00022816,2]
[313129983,1706789438019,-200.0,0.00022816,2]
[313129984,1706789438028,-800.0,0.00022816,2]
[313129985,1706789438038,-151.21645219,0.0002283,2]
[313129986,1706789438047,-151.21645219,0.00022853,2]
[313129987,1706789438056,-151.21645219,0.00022877,2]
[313129988,1706789438065,-151.21645219,0.000229,2]
[313129989,1706789438074,-154.66893655,0.000229,2]
[313129990,1706789438083,-2947.57924515,0.000229,2]
[313129991,1706789438092,-613.60837158,0.000229,2]
[313129992,1706789438103,-170.0668564,0.000229,6]
[313129993,1706789438112,-198.93083368,0.000229,2]
[313129994,1706789438122,-533.40243106,0.000229,2]
[313129995,1706789438131,-1375.07063722,0.00022901,2]
[313129996,1706789438140,-208.0,0.00022931,2]
[313129997,1706789438149,-2697.7076292,0.00022995,2]
[313129998,1706789438157,-54181.3448304,0.00022995,2]
[313129999,1706789438167,-5751.5612171,0.00022995,2]
[313130000,1706789438176,-1112.7773669,0.00022995,2]
[313130001,1706789438185,-1062.34025431,0.00022999,2]
[313130002,1706789438194,-562.90768793,0.00022999,2]
[313130003,1706789438203,-150.01,0.00022999,2]
[313130004,1706789438212,-3306.75797983,0.00022999,2]
[313130005,1706789438222,-150.0,0.00022999,2]
[313130006,1706789438230,-150.0,0.00022999,2]
[313130007,1706789438242,-150.0,0.00022999,2]
[313130008,1706789438251,-150.0,0.00022999,2]
[313130009,1706789438261,-633.0,0.00023,2]
[313130010,1706789438270,-674209.48101348,0.00023,3]
[313130011,1706789438279,-753701.09227012,0.00023,2]
[313130012,1706789438288,-661977.31675272,0.00023,2]
[313130013,1706789438300,-1096135.21986409,0.00023,2]
[313130014,1706789438310,-690278.46594678,0.00023,2]
[313130015,1706789438320,-200.0,0.00023,2]
[313130016,1706789438330,-517.4,0.00023011,2]
[313130017,1706789438339,-2329.70985628,0.00023033,2]
[313130018,1706789438348,-156.86,0.00023089,2]
[313130019,1706789438357,-281.85,0.00023171,2]
[313130020,1706789438366,-565.3,0.00023439,2]
[313130021,1706789438375,-275.09,0.00023875,2]
[313130022,1706789438385,-216.46,0.00023944,2]
[313130023,1706789438394,-2531.195,0.00023999,2]
[313130024,1706789438403,-201.73516107,0.00024,2]
[313130025,1706789438413,-172.75,0.00024297,2]
[313130026,1706789438423,-157.09803962,0.000243,2]
[313130027,1706789438432,-2212.67,0.00024384,2]
[313130028,1706789438441,-268.54,0.00024384,2]
[313130029,1706789438451,-1109.79868394,0.000245,2]
[313130030,1706789438460,-6378.63241156,0.00024537,4]